[Event "Turkish Cup 2022"]
[Site "Sakarya"]
[Date "2022.03.28"]
[Round "5.36"]
[White "Pehlivan, Mert"]
[Black "Isik, Kadri"]
[Result "0-1"]
[ECO "B53"]
[WhiteElo "1573"]
[BlackElo "1858"]
[Annotator "NA RC"]
[PlyCount "134"]
[EventDate "2022.03.25"]
[EventType "swiss"]
[EventCountry "TUR"]
[SourceTitle "playchess.com"]
[Source "ChessBase"]
[SourceQuality "1"]
[TimeControl "5400+30"]

1. e4 {[%emt 0:01:00]} c5 {[%emt 0:01:00]} 2. Nf3 {[%emt 0:00:00]} d6 {[%emt 0:00:30]} 3. d4 {[%emt 0:00:00]} cxd4 {[%emt 0:00:30]} 4. Qxd4 {[%emt 0:00:30]} Nc6 {[%emt 0:00:00]} 5. Bb5 {[%emt 0:00:30]} Bd7 {[%emt 0:00:00]} 6. Bxc6 {[%emt 0:00:30]} Bxc6 {[%emt 0:00:30]} 7. Nc3 {[%emt 0:00:00]} Nf6 {[%emt 0:00:00]} 8. Bg5 {[%emt 0:00:00]} e6 {[%emt 0:00:00]} 9. O-O-O {[%emt 0:00:30]} Be7 {[%emt 0:00:30]} 10. Rhe1 {[%emt 0:04:30] 10.Qd3 gains popularity.} h6 {[%emt 0:24:30]} 11. Bh4 {[%emt 0:07:30]} Qa5 {[%emt 0:02:30] [#]} 12. e5 $146 {[%emt 0:07:30]} ({Predecessor:} 12. Kb1 O-O 13. Qd2 Rfd8 14. Nd4 Rac8 15. Nd5 Qxd2 16. Nxe7+ Kf8 17. Ng6+ fxg6 18. Rxd2 Kf7 19. f3 {0-1 (70) Zhigalko,S (2572)-Paragua,M (2529) Chess.com INT 2021}) 12... dxe5 {[%emt 0:00:30]} 13. Nxe5 {[%emt 0:04:30]} Rd8 {[%emt 0:20:30]} 14. Nxc6 {[%emt 0:04:30]} Rxd4 {[%emt 0:00:30]} 15. Nxa5 {[%emt 0:00:30]} Rxh4 {[%emt 0:00:30]} 16. h3 {[%emt 0:01:30]} Bb4 {[%emt 0:07:30]} 17. Nb3 {[%emt 0:05:30]} Bxc3 {[%emt 0:01:30]} 18. bxc3 {[%emt 0:00:30]} Rc4 {[%emt 0:00:30]} 19. Kb2 {[%emt 0:08:30]} O-O {[%emt 0:06:30]} 20. Rd4 {[%emt 0:06:30]} Rc7 {[%emt 0:08:30]} 21. Red1 {[%emt 0:01:30]} Rfc8 {[%emt 0:05:49]} 22. Rd8+ {[%emt 0:01:30]} Kh7 {[%emt 0:00:00]} 23. Rxc8 {[%emt 0:03:30]} Rxc8 {[%emt 0:00:04]} 24. f3 {[%emt 0:00:30]} Nd5 {[%emt 0:00:30]} 25. Rd3 {[%emt 0:00:30]} Kg6 {[%emt 0:00:30]} 26. g3 {[%emt 0:00:30]} Kf6 {[%emt 0:00:30]} 27. Nd2 {[%emt 0:04:30]} b5 {[%emt 0:06:34]} 28. a3 {[%emt 0:09:30]} Ke7 {[%emt 0:01:40]} 29. f4 {[%emt 0:03:30]} f5 {[%emt 0:01:22]} 30. Nf3 {[%emt 0:03:30]} Kf6 {[%emt 0:01:18]} 31. Nd4 {[%emt 0:01:30]} a6 {[%emt 0:01:22]} 32. Kb3 {[%emt 0:01:30]} (32. h4 $17) 32... g5 {[%emt 0:00:34]} 33. Ne2 {[%emt 0:04:30]} a5 {[%emt 0:03:53]} 34. a4 {[%emt 0:06:04]} bxa4+ {[%emt 0:02:03]} 35. Kxa4 {[%emt 0:00:10]} gxf4 {[%emt 0:00:38]} 36. gxf4 {[%emt 0:00:07]} Nxf4 {[%emt 0:01:15]} 37. Nxf4 {[%emt 0:00:30]} Rc4+ {[%emt 0:00:30]} 38. Kxa5 {[%emt 0:00:30]} Rxf4 {[%emt 0:00:00]} 39. Kb5 {[%emt 0:00:00]} Rf2 {[%emt 0:00:00]} 40. c4 {[%emt 0:00:46]} Rxc2 {[%emt 0:00:00]} 41. c5 {[%emt 0:00:16]} e5 {[%emt 0:00:00]} 42. c6 {[%emt 0:00:47]} Ke6 {[%emt 0:01:07]} 43. Kb6 {[%emt 0:00:43]} e4 {[%emt 0:00:36]} 44. Rd8 {[%emt 0:01:17]} f4 {[%emt 0:00:43]} 45. Re8+ {[%emt 0:06:17]} Kd5 {[%emt 0:00:29]} 46. Rd8+ $19 {[%emt 0:00:33] [#]} Ke5 $1 {[%emt 0:00:13]} 47. c7 {[%emt 0:00:23]} f3 {[%emt 0:00:37]} 48. c8=Q {[%emt 0:00:19]} Rxc8 {[%emt 0:00:10]} 49. Rxc8 {[%emt 0:00:00]} f2 {[%emt 0:00:26]} 50. Kc5 {[%emt 0:00:48]} e3 {[%emt 0:01:55]} 51. Re8+ {[%emt 0:00:52]} Kf4 {[%emt 0:00:01]} 52. Kd4 {[%emt 0:00:29]} e2 {[%emt 0:00:12]} 53. Re4+ {[%emt 0:00:27]} Kf5 {[%emt 0:00:30]} 54. Rxe2 {[%emt 0:00:30]} f1=Q {[%emt 0:00:30]} 55. Re3 {[%emt 0:00:30]} Qd1+ {[%emt 0:00:30]} 56. Rd3 {[%emt 0:00:00]} Qa4+ {[%emt 0:01:48]} 57. Ke3 {[%emt 0:00:17]} Qe4+ {[%emt 0:00:59]} 58. Kd2 {[%emt 0:00:05]} Kf4 {[%emt 0:00:25]} 59. Kc3 {[%emt 0:00:23]} Qe1+ {[%emt 0:00:26]} 60. Kc4 {[%emt 0:00:57]} Qc1+ {[%emt 0:00:53]} 61. Kd5 {[%emt 0:00:30]} Qc2 {[%emt 0:01:17]} 62. Kd4 {[%emt 0:00:45]} Qc6 {[%emt 0:00:52]} 63. Rb3 {[%emt 0:02:50]} Qd6+ {[%emt 0:01:27]} 64. Kc3 {[%emt 0:00:07]} Kg3 {[%emt 0:00:54]} 65. Kc2+ {[%emt 0:00:17]} Kh4 {[%emt 0:00:00]} 66. Rc3 {[%emt 0:00:25]} Qd4 {[%emt 0:00:00]} 67. Ra3 {[%emt 0:00:55]} Qc5+ {[%emt 0:00:03]} 0-1

[Event "Turkish Cup 2022"]
[Site "Sakarya"]
[Date "2022.03.28"]
[Round "5.37"]
[White "Demirag, Gokhan"]
[Black "Ozates, Veysel"]
[Result "1-0"]
[ECO "D17"]
[WhiteElo "1946"]
[BlackElo "1645"]
[Annotator "RC"]
[PlyCount "85"]
[EventDate "2022.03.25"]
[EventType "swiss"]
[EventCountry "TUR"]
[SourceTitle "playchess.com"]
[Source "ChessBase"]
[SourceQuality "1"]
[TimeControl "5400+30"]

1. d4 {[%emt 0:01:00]} d5 {[%emt 0:01:00]} 2. c4 {[%emt 0:00:00]} c6 {[%emt 0:00:30]} 3. Nf3 {[%emt 0:00:00]} Nf6 {[%emt 0:00:00]} 4. Nc3 {[%emt 0:00:00]} dxc4 {[%emt 0:00:00]} 5. a4 {[%emt 0:00:00]} Bf5 {[%emt 0:00:30]} 6. Ne5 {[%emt 0:00:30]} e6 {[%emt 0:00:30]} 7. f3 {[%emt 0:06:30]} Nbd7 {[%emt 0:05:30]} 8. Nxc4 {[%emt 0:04:30]} Qc7 {[%emt 0:03:30]} 9. e4 {[%emt 0:00:30]} Bg6 {[%emt 0:00:30]} 10. Be3 {[%emt 0:02:30]} Be7 {[%emt 0:01:30]} 11. Qd2 {[%emt 0:00:30]} Nb6 {[%emt 0:03:30]} 12. Ne5 {[%emt 0:01:30]} Rd8 {[%emt 0:06:30]} 13. a5 {[%emt 0:04:30]} Nbd7 {[%emt 0:01:30]} 14. Nc4 {[%emt 0:00:30]} e5 {[%emt 0:03:30]} 15. Qf2 {[%emt 0:14:30]} exd4 {[%emt 0:05:30]} 16. Bxd4 {[%emt 0:00:30]} c5 {[%emt 0:06:30]} 17. Be3 {[%emt 0:05:30]} a6 {[%emt 0:01:30]} 18. Be2 {[%emt 0:09:30]} O-O {[%emt 0:00:30]} 19. O-O {[%emt 0:00:30]} Rfe8 {[%emt 0:06:30]} 20. Rfd1 {[%emt 0:00:30]} Bf8 {[%emt 0:02:30]} 21. Qh4 {[%emt 0:05:30]} h6 {[%emt 0:02:30]} 22. Bf4 {[%emt 0:02:30]} Qc8 {[%emt 0:03:30]} 23. Bd6 {[%emt 0:07:30]} Be7 {[%emt 0:06:30]} 24. Qf2 {[%emt 0:08:30]} Qc6 {[%emt 0:05:30]} 25. Bxe7 {[%emt 0:00:30]} Rxe7 {[%emt 0:00:30]} 26. Rd6 {[%emt 0:00:30]} Qc8 {[%emt 0:00:30]} 27. Rad1 {[%emt 0:00:30]} Ree8 {[%emt 0:01:30]} 28. e5 {[%emt 0:01:30]} Nh7 {[%emt 0:02:30]} 29. f4 {[%emt 0:04:30]} Bf5 {[%emt 0:02:30]} 30. Qh4 {[%emt 0:00:30]} f6 {[%emt 0:02:30]} 31. g4 {[%emt 0:04:15]} Be6 {[%emt 0:01:30]} 32. Qe1 {[%emt 0:02:57]} Bxc4 {[%emt 0:02:30]} 33. Bxc4+ {[%emt 0:00:30]} Kh8 {[%emt 0:00:30]} 34. e6 {[%emt 0:04:49]} Ndf8 {[%emt 0:06:22]} 35. Rxd8 {[%emt 0:00:49]} Rxd8 {[%emt 0:00:52]} 36. Rxd8 {[%emt 0:00:04]} Qxd8 {[%emt 0:00:26]} 37. e7 {[%emt 0:00:09]} Qd4+ {[%emt 0:02:37]} 38. Qf2 {[%emt 0:00:02]} Qd7 {[%emt 0:02:51]} 39. exf8=Q+ {[%emt 0:00:12]} Nxf8 {[%emt 0:00:18]} 40. h3 {[%emt 0:00:31]} Qc7 {[%emt 0:01:05]} 41. Qd2 {[%emt 0:02:33]} Qxa5 {[%emt 0:02:30]} 42. Kg2 {[%emt 0:01:08]} Qc7 {[%emt 0:02:10]} 43. Qd5 {[%emt 0:00:22]} 1-0

[Event "Turkish Cup 2022"]
[Site "Sakarya"]
[Date "2022.03.28"]
[Round "5.39"]
[White "Karadag, Eflatun Cem"]
[Black "Gani, Refik Efe"]
[Result "1-0"]
[ECO "A00"]
[WhiteElo "1800"]
[BlackElo "1370"]
[Annotator "NA RC"]
[PlyCount "109"]
[EventDate "2022.03.25"]
[EventType "swiss"]
[EventCountry "TUR"]
[SourceTitle "playchess.com"]
[Source "ChessBase"]
[SourceQuality "1"]
[TimeControl "5400+30"]

1. Nf3 {[%emt 0:01:00]} d5 {[%emt 0:01:00]} 2. b4 {[%emt 0:03:30]} e5 {[%emt 0:03:30]} 3. Nxe5 {[%emt 0:03:30]} Bxb4 {[%emt 0:00:30]} 4. c4 {[%emt 0:02:30]} Be7 {[%emt 0:03:30]} 5. e3 {[%emt 0:05:30]} Bf6 {[%emt 0:10:30]} 6. d4 {[%emt 0:06:30]} Ne7 {[%emt 0:05:30]} 7. Nc3 {[%emt 0:05:30]} O-O {[%emt 0:01:30]} 8. Ba3 {[%emt 0:10:30]} c6 {[%emt 0:13:30]} 9. Qb3 {[%emt 0:03:30]} Bxe5 {[%emt 0:00:30]} 10. dxe5 {[%emt 0:01:30]} dxc4 {[%emt 0:03:30]} 11. Bxc4 {[%emt 0:05:30]} b5 {[%emt 0:02:30]} 12. Be2 {[%emt 0:02:30]} Be6 {[%emt 0:03:30]} 13. Qb4 {[%emt 0:08:30]} Re8 {[%emt 0:00:30]} 14. Rd1 {[%emt 0:01:30]} Qc7 {[%emt 0:04:30]} 15. Qd6 {[%emt 0:03:30]} Qxd6 {[%emt 0:02:30]} 16. Bxd6 {[%emt 0:02:30]} Nd7 {[%emt 0:05:30]} 17. Bf3 {[%emt 0:05:30]} Rac8 {[%emt 0:02:30]} 18. Be4 {[%emt 0:00:30]} Nf5 {[%emt 0:04:30]} 19. Bxf5 {[%emt 0:04:30]} Bxf5 {[%emt 0:00:00]} 20. e4 {[%emt 0:02:30]} Be6 {[%emt 0:02:00]} 21. f4 {[%emt 0:00:34]} a5 {[%emt 0:03:30]} 22. a3 {[%emt 0:02:17]} f6 {[%emt 0:06:30]} 23. f5 {[%emt 0:01:35]} Bc4 {[%emt 0:00:30]} 24. e6 {[%emt 0:01:40]} Ne5 {[%emt 0:00:00]} 25. Bxe5 {[%emt 0:06:16]} fxe5 {[%emt 0:00:00]} 26. Kf2 {[%emt 0:00:30]} b4 {[%emt 0:00:30]} 27. axb4 {[%emt 0:00:30]} axb4 {[%emt 0:04:17]} 28. Nb1 {[%emt 0:02:17]} (28. Na4 $11 Bb3 29. Nb6) 28... Red8 {[%emt 0:02:17]} 29. Nd2 {[%emt 0:00:28]} Bd3 {[%emt 0:03:22]} 30. Ke3 {[%emt 0:00:33]} Bc2 {[%emt 0:00:24]} 31. Rc1 {[%emt 0:01:36]} b3 {[%emt 0:00:50]} 32. Rxc2 {[%emt 0:00:48]} bxc2 {[%emt 0:00:15]} 33. Rc1 {[%emt 0:00:00]} Kf8 {[%emt 0:05:23]} 34. Nf3 {[%emt 0:01:08]} Rd1 {[%emt 0:01:17]} 35. Rxc2 {[%emt 0:00:30]} Ke7 {[%emt 0:00:12]} 36. Nxe5 {[%emt 0:00:06]} c5 {[%emt 0:00:12]} 37. Ke2 {[%emt 0:01:28]} Rd4 {[%emt 0:01:34]} 38. Ke3 {[%emt 0:00:20]} Rd1 $18 {[%emt 0:00:00]} 39. g4 {[%emt 0:00:41]} (39. Ra2 $18) 39... Rc7 {[%emt 0:02:45]} 40. g5 {[%emt 0:01:28]} Re1+ {[%emt 0:00:54]} 41. Kf4 {[%emt 0:00:24]} Rf1+ {[%emt 0:01:13]} 42. Nf3 {[%emt 0:00:20]} g6 {[%emt 0:00:27]} 43. Rc3 {[%emt 0:00:17]} c4 {[%emt 0:00:57]} 44. Ke5 {[%emt 0:00:56]} Rc5+ $1 {[%emt 0:01:52]} 45. Kd4 {[%emt 0:00:41]} Rc7 {[%emt 0:00:01]} 46. Kd5 {[%emt 0:00:16]} Rd1+ {[%emt 0:00:59]} 47. Nd4 {[%emt 0:00:13]} Ra1 {[%emt 0:01:42]} 48. Nc6+ {[%emt 0:01:59]} Rxc6 {[%emt 0:00:30]} 49. Kxc6 {[%emt 0:00:30]} Ra5 {[%emt 0:00:30]} 50. Rf3 {[%emt 0:00:30]} c3 {[%emt 0:00:30]} 51. f6+ {[%emt 0:00:30]} Kxe6 {[%emt 0:00:00]} 52. f7 {[%emt 0:00:45]} c2 {[%emt 0:00:00]} 53. Rf6+ {[%emt 0:00:27]} Ke5 {[%emt 0:00:00]} 54. Rf1 {[%emt 0:00:51]} Ke6 {[%emt 0:00:30]} 55. f8=Q {[%emt 0:00:00]} 1-0

[Event "Turkish Cup 2022"]
[Site "Sakarya"]
[Date "2022.03.28"]
[Round "5.41"]
[White "Akgun, Yusuf"]
[Black "Cil, Batuhan"]
[Result "1-0"]
[ECO "B22"]
[WhiteElo "1561"]
[BlackElo "1737"]
[Annotator "NA RC"]
[PlyCount "115"]
[EventDate "2022.03.25"]
[EventType "swiss"]
[EventCountry "TUR"]
[SourceTitle "playchess.com"]
[Source "ChessBase"]
[SourceQuality "1"]
[TimeControl "5400+30"]

1. e4 {[%emt 0:01:00]} c5 {[%emt 0:01:00]} 2. c3 {[%emt 0:00:00]} e6 {[%emt 0:00:30]} 3. d4 {[%emt 0:00:00]} d5 {[%emt 0:00:00]} 4. exd5 {[%emt 0:01:30]} exd5 {[%emt 0:00:00]} 5. Nf3 {[%emt 0:01:30]} Nf6 {[%emt 0:00:30]} 6. Bg5 {[%emt 0:00:30]} Be6 {[%emt 0:01:30]} 7. Nbd2 {[%emt 0:05:30]} Nc6 {[%emt 0:09:30]} 8. Bd3 {[%emt 0:08:30]} c4 {[%emt 0:20:30]} 9. Bc2 {[%emt 0:06:30]} Be7 {[%emt 0:03:30]} 10. O-O {[%emt 0:02:30]} O-O {[%emt 0:03:30]} 11. Ne5 {[%emt 0:05:30]} Nxe5 {[%emt 0:06:30]} 12. dxe5 {[%emt 0:02:30]} Nd7 {[%emt 0:00:00]} 13. Bxe7 {[%emt 0:06:30]} Qxe7 {[%emt 0:00:00]} 14. f4 {[%emt 0:00:30]} f5 {[%emt 0:05:30]} 15. Nf3 {[%emt 0:15:30]} Nc5 {[%emt 0:07:30]} 16. Nd4 {[%emt 0:03:30]} a6 {[%emt 0:02:30]} 17. g4 {[%emt 0:07:30]} g6 {[%emt 0:07:30]} 18. gxf5 {[%emt 0:10:30]} gxf5 {[%emt 0:00:30]} 19. Kh1 {[%emt 0:00:30]} Kh8 {[%emt 0:03:30]} 20. Rg1 {[%emt 0:04:35]} Rae8 {[%emt 0:12:15]} 21. Qh5 {[%emt 0:05:31]} Qf7 {[%emt 0:03:03]} 22. Qxf7 {[%emt 0:05:39]} Rxf7 {[%emt 0:00:02]} 23. Rad1 {[%emt 0:01:46]} Rg8 {[%emt 0:02:06]} 24. Rxg8+ {[%emt 0:01:08]} Kxg8 {[%emt 0:00:02]} 25. Kg2 {[%emt 0:00:16]} Kf8 {[%emt 0:04:41]} 26. Kf3 {[%emt 0:01:10]} Ke7 {[%emt 0:00:09]} 27. b3 {[%emt 0:02:51]} b5 {[%emt 0:00:24]} 28. bxc4 {[%emt 0:00:22]} Ne4 {[%emt 0:04:57]} 29. Nc6+ {[%emt 0:01:07]} Kd7 {[%emt 0:02:56]} 30. cxd5 {[%emt 0:00:20]} Bxd5 {[%emt 0:00:09]} 31. Rxd5+ {[%emt 0:00:15]} Kxc6 {[%emt 0:00:45]} 32. Bxe4 {[%emt 0:00:41]} fxe4+ {[%emt 0:00:30]} 33. Kxe4 {[%emt 0:00:00]} Rg7 {[%emt 0:00:20]} 34. Rd6+ {[%emt 0:00:00]} Kc7 {[%emt 0:00:39]} 35. Rxa6 {[%emt 0:01:02]} Rg2 {[%emt 0:00:13]} 36. Ra7+ {[%emt 0:00:17]} Kc6 {[%emt 0:00:30]} 37. Rxh7 {[%emt 0:00:00]} Rxa2 {[%emt 0:00:00]} 38. Kf5 {[%emt 0:00:45]} Ra3 {[%emt 0:00:28]} 39. Rh3 {[%emt 0:00:47]} b4 {[%emt 0:00:02]} 40. Rg3 {[%emt 0:00:43]} Rxc3 {[%emt 0:00:29]} 41. Ke4 {[%emt 0:01:02]} Rc4+ {[%emt 0:00:41]} 42. Kf5 {[%emt 0:00:34]} Rc3 {[%emt 0:00:28]} 43. Rg8 {[%emt 0:00:38]} Kc7 {[%emt 0:00:53]} 44. Rg1 {[%emt 0:00:28]} b3 {[%emt 0:00:32]} 45. Rb1 {[%emt 0:00:39]} Kd7 {[%emt 0:00:30]} 46. Kf6 {[%emt 0:00:30]} Ke8 {[%emt 0:00:30]} 47. f5 {[%emt 0:00:30]} Rc6+ {[%emt 0:01:15]} 48. e6 {[%emt 0:00:00]} Rb6 {[%emt 0:00:19]} 49. h4 {[%emt 0:00:17]} b2 {[%emt 0:00:43]} 50. h5 {[%emt 0:00:14]} Kf8 {[%emt 0:00:00]} 51. h6 {[%emt 0:00:45]} Rb7 {[%emt 0:00:24]} 52. Kg6 {[%emt 0:00:31]} Rb3 {[%emt 0:00:40]} 53. h7 {[%emt 0:00:47]} Rg3+ {[%emt 0:00:58]} 54. Kf6 {[%emt 0:00:15]} Rh3 {[%emt 0:00:23]} 55. e7+ {[%emt 0:01:23]} Ke8 {[%emt 0:00:17]} 56. Rxb2 {[%emt 0:00:02]} Rh6+ {[%emt 0:01:11]} 57. Kg7 {[%emt 0:00:16]} Rh3 {[%emt 0:00:04]} 58. h8=Q+ {[%emt 0:00:13]} 1-0

[Event "Turkish Cup 2022"]
[Site "Sakarya"]
[Date "2022.03.28"]
[Round "5.44"]
[White "Sezis, Doruk"]
[Black "Parlarkilic, Engin"]
[Result "1-0"]
[ECO "A38"]
[WhiteElo "1566"]
[BlackElo "1587"]
[Annotator "NA RC"]
[PlyCount "123"]
[EventDate "2022.03.25"]
[EventType "swiss"]
[EventCountry "TUR"]
[SourceTitle "playchess.com"]
[Source "ChessBase"]
[SourceQuality "1"]
[TimeControl "5400+30"]

1. c4 {[%emt 0:01:00]} c5 {[%emt 0:01:00]} 2. Nc3 {[%emt 0:00:00]} Nc6 {[%emt 0:00:30]} 3. g3 {[%emt 0:00:00]} g6 {[%emt 0:00:30]} 4. Bg2 {[%emt 0:00:30]} Bg7 {[%emt 0:00:30]} 5. Nf3 {[%emt 0:00:30]} Nf6 {[%emt 0:00:00]} 6. d4 {[%emt 0:00:30]} cxd4 {[%emt 0:01:00]} 7. Nxd4 {[%emt 0:00:30]} O-O {[%emt 0:00:30]} 8. Nc2 {[%emt 0:00:30]} d6 {[%emt 0:11:30]} 9. O-O {[%emt 0:00:30]} Rb8 {[%emt 0:05:30]} 10. e4 {[%emt 0:00:30]} a6 {[%emt 0:02:30]} 11. h3 {[%emt 0:17:30]} Qa5 {[%emt 0:04:30]} 12. Bd2 {[%emt 0:01:30]} Qh5 {[%emt 0:00:30]} 13. Qxh5 {[%emt 0:02:30]} Nxh5 {[%emt 0:00:30]} 14. g4 {[%emt 0:00:00]} Nf6 {[%emt 0:00:30]} 15. f4 {[%emt 0:00:00]} Nd7 {[%emt 0:03:30]} 16. Be3 {[%emt 0:07:30]} Na5 {[%emt 0:03:30]} 17. Na3 {[%emt 0:05:30]} Nc6 {[%emt 0:03:30]} 18. Rac1 {[%emt 0:03:30]} Bd4 {[%emt 0:00:30]} 19. Bxd4 {[%emt 0:00:30]} Nxd4 {[%emt 0:00:30]} 20. Rfd1 {[%emt 0:00:30]} Nc6 {[%emt 0:02:30]} 21. Nd5 {[%emt 0:02:30]} Kg7 {[%emt 0:02:30]} 22. Nc2 {[%emt 0:06:30]} Nf6 {[%emt 0:05:30]} 23. Nce3 {[%emt 0:03:30]} Nxd5 {[%emt 0:03:30]} 24. cxd5 {[%emt 0:00:30]} Na7 {[%emt 0:00:30]} 25. e5 {[%emt 0:01:30]} dxe5 {[%emt 0:01:30]} 26. fxe5 {[%emt 0:00:00]} Rd8 {[%emt 0:03:30]} 27. Nc4 {[%emt 0:08:00]} b5 {[%emt 0:04:30]} 28. Na5 {[%emt 0:00:00]} Rd7 {[%emt 0:04:30]} 29. d6 {[%emt 0:03:00]} exd6 {[%emt 0:02:30]} 30. exd6 {[%emt 0:00:30]} Rb6 {[%emt 0:00:30]} 31. Nc6 {[%emt 0:01:30]} Nxc6 {[%emt 0:01:30]} 32. Bxc6 {[%emt 0:00:00]} Rd8 {[%emt 0:01:30]} 33. d7 {[%emt 0:27:56]} Bb7 {[%emt 0:00:30]} 34. Bg2 {[%emt 0:00:20]} Bxg2 {[%emt 0:00:30]} 35. Rc8 {[%emt 0:00:12]} Rxd7 {[%emt 0:03:30]} 36. Rxd7 {[%emt 0:00:08]} Bxh3 {[%emt 0:00:00]} 37. Rcc7 {[%emt 0:00:08]} Rf6 {[%emt 0:00:00]} 38. Rd4 {[%emt 0:00:07]} h5 {[%emt 0:00:30]} 39. gxh5 {[%emt 0:02:23]} gxh5 {[%emt 0:01:30]} 40. Kh2 {[%emt 0:00:24]} Bg4 {[%emt 0:00:30]} 41. Kg3 {[%emt 0:00:08]} Rf3+ {[%emt 0:00:30]} 42. Kg2 {[%emt 0:00:01]} Re3 {[%emt 0:01:30]} 43. Rf4 {[%emt 0:00:22]} Be6 {[%emt 0:00:30]} 44. a3 {[%emt 0:01:42]} Re2+ {[%emt 0:00:30]} 45. Rf2 {[%emt 0:01:10]} Re5 {[%emt 0:00:30]} 46. Ra7 {[%emt 0:00:00]} h4 {[%emt 0:00:30]} 47. Rxa6 {[%emt 0:00:08]} Rg5+ {[%emt 0:01:30]} 48. Kh2 {[%emt 0:00:15]} h3 {[%emt 0:01:30]} 49. a4 {[%emt 0:00:22]} bxa4 {[%emt 0:00:30]} 50. Rxa4 {[%emt 0:00:05]} Rb5 {[%emt 0:01:30]} 51. b4 {[%emt 0:02:05]} Bb3 {[%emt 0:00:30]} 52. Ra3 {[%emt 0:00:03]} Be6 {[%emt 0:00:30]} 53. Rb2 {[%emt 0:01:22]} Kf6 {[%emt 0:00:30]} 54. Kg3 {[%emt 0:00:15]} Ke7 {[%emt 0:01:30]} 55. Ra5 {[%emt 0:00:38]} Rb8 {[%emt 0:00:30]} 56. Rc5 {[%emt 0:00:00]} Rg8+ {[%emt 0:00:30]} 57. Kh2 {[%emt 0:00:00]} Rc8 {[%emt 0:07:43]} 58. Rxc8 {[%emt 0:00:59]} Bxc8 {[%emt 0:00:06]} 59. b5 {[%emt 0:00:00]} Kd6 {[%emt 0:02:00]} 60. Rc2 {[%emt 0:00:11]} Be6 {[%emt 0:03:04]} 61. b6 {[%emt 0:00:05]} Bd5 {[%emt 0:01:38]} 62. Rd2 {[%emt 0:00:03]} 1-0

[Event "Turkish Cup 2022"]
[Site "Sakarya"]
[Date "2022.03.28"]
[Round "5.45"]
[White "Tocoglu, Onur"]
[Black "Altin, Halis"]
[Result "1-0"]
[ECO "D77"]
[WhiteElo "1798"]
[BlackElo "1536"]
[Annotator "NA RC"]
[PlyCount "96"]
[EventDate "2022.03.25"]
[EventType "swiss"]
[EventCountry "TUR"]
[SourceTitle "playchess.com"]
[Source "ChessBase"]
[SourceQuality "1"]
[TimeControl "5400+30"]

1. Nf3 {[%emt 0:01:00]} Nf6 {[%emt 0:01:00]} 2. c4 {[%emt 0:00:30]} e6 {[%emt 0:00:30]} 3. g3 {[%emt 0:00:00]} d5 {[%emt 0:00:30]} 4. cxd5 {[%emt 0:00:00]} exd5 {[%emt 0:00:30]} 5. Bg2 {[%emt 0:00:30]} g6 {[%emt 0:01:30]} 6. O-O {[%emt 0:00:30]} Bg7 {[%emt 0:00:30]} 7. d4 {[%emt 0:03:30]} O-O {[%emt 0:02:30]} 8. Bf4 {[%emt 0:06:30]} Nbd7 {[%emt 0:03:30]} 9. Qc1 {[%emt 0:01:30]} c6 {[%emt 0:00:30]} 10. Bh6 {[%emt 0:00:00]} Re8 {[%emt 0:03:30]} 11. Bxg7 {[%emt 0:02:00]} Kxg7 {[%emt 0:00:30]} 12. Re1 {[%emt 0:00:30]} Ne4 {[%emt 0:02:30]} 13. Nfd2 {[%emt 0:05:30]} f5 {[%emt 0:03:30]} 14. f3 {[%emt 0:03:30]} Nd6 {[%emt 0:01:30]} 15. Nc3 {[%emt 0:12:30]} Qf6 {[%emt 0:04:30]} 16. e3 {[%emt 0:02:30]} Nf8 {[%emt 0:02:30]} 17. b4 {[%emt 0:01:30]} Bd7 {[%emt 0:02:30]} 18. a4 {[%emt 0:01:30]} a6 {[%emt 0:02:30]} 19. Nb3 {[%emt 0:01:30]} Be6 {[%emt 0:13:30]} 20. a5 {[%emt 0:04:30]} Bf7 {[%emt 0:03:30]} 21. Na4 {[%emt 0:02:30]} Nd7 {[%emt 0:01:30]} 22. Nbc5 {[%emt 0:00:30]} Nxc5 {[%emt 0:00:30]} 23. Nxc5 {[%emt 0:08:30]} Re7 {[%emt 0:01:30]} 24. Qc3 {[%emt 0:07:30]} Rae8 {[%emt 0:00:30]} 25. Bf1 {[%emt 0:02:30]} f4 {[%emt 0:13:30]} 26. exf4 {[%emt 0:05:30]} Rxe1 {[%emt 0:00:30]} 27. Rxe1 {[%emt 0:00:30]} Rxe1 {[%emt 0:00:30]} 28. Qxe1 {[%emt 0:00:00]} Qxd4+ {[%emt 0:00:30]} 29. Kg2 {[%emt 0:00:00]} Qb2+ {[%emt 0:03:30]} 30. Kh3 {[%emt 0:01:30]} Qf6 {[%emt 0:00:30]} 31. Qe5 {[%emt 0:01:30]} d4 {[%emt 0:10:30]} 32. Kg2 {[%emt 0:08:46]} Bd5 {[%emt 0:03:41]} 33. Kf2 {[%emt 0:06:50]} Bc4 {[%emt 0:03:49]} 34. Qxf6+ {[%emt 0:04:22]} Kxf6 {[%emt 0:00:08]} 35. Bxc4 {[%emt 0:01:06]} Nxc4 {[%emt 0:00:12]} 36. Nxb7 {[%emt 0:00:13]} Ke6 {[%emt 0:01:43]} 37. Nc5+ {[%emt 0:00:23]} Kd5 {[%emt 0:01:23]} 38. Nxa6 {[%emt 0:00:24]} d3 {[%emt 0:01:08]} 39. Nc5 {[%emt 0:03:10]} Kd4 {[%emt 0:00:23]} 40. Ne4 {[%emt 0:02:48]} Na3 {[%emt 0:02:44]} 41. a6 {[%emt 0:01:09]} Nb5 {[%emt 0:00:30]} 42. g4 {[%emt 0:00:26]} Na7 {[%emt 0:02:10]} 43. h4 {[%emt 0:00:45]} Kc4 {[%emt 0:01:18]} 44. f5 {[%emt 0:00:22]} gxf5 {[%emt 0:00:36]} 45. gxf5 {[%emt 0:00:01]} Kd5 {[%emt 0:00:33]} 46. f6 {[%emt 0:00:11]} Ke6 {[%emt 0:00:50]} 47. Ke3 {[%emt 0:00:07]} h5 {[%emt 0:00:53]} 48. Kxd3 {[%emt 0:00:06]} Kd5 {[%emt 0:01:00]} 1-0

[Event "Turkish Cup 2022"]
[Site "Sakarya"]
[Date "2022.03.28"]
[Round "5.47"]
[White "Kilic, Nurullah"]
[Black "Buyuk, Eymen Eren"]
[Result "1/2-1/2"]
[ECO "C02"]
[WhiteElo "1171"]
[BlackElo "1526"]
[Annotator "NA RC"]
[PlyCount "71"]
[EventDate "2022.03.25"]
[EventType "swiss"]
[EventCountry "TUR"]
[SourceTitle "playchess.com"]
[Source "ChessBase"]
[SourceQuality "1"]
[TimeControl "5400+30"]

1. e4 {[%emt 0:01:00]} e6 {[%emt 0:01:00]} 2. d4 {[%emt 0:01:30]} d5 {[%emt 0:00:00]} 3. e5 {[%emt 0:00:30]} c5 {[%emt 0:00:00]} 4. c3 {[%emt 0:00:30]} f5 {[%emt 0:00:30]} 5. exf6 {[%emt 0:03:30]} Nxf6 {[%emt 0:01:30]} 6. Nf3 {[%emt 0:01:30]} Nc6 {[%emt 0:00:00]} 7. Na3 {[%emt 0:04:30]} cxd4 {[%emt 0:12:00]} 8. cxd4 {[%emt 0:02:30]} Qa5+ {[%emt 0:00:30]} 9. Bd2 {[%emt 0:01:30]} Qb6 {[%emt 0:00:00]} 10. Nc2 {[%emt 0:06:30]} Bd6 {[%emt 0:05:00]} 11. a3 {[%emt 0:04:30]} O-O {[%emt 0:01:30]} 12. Bd3 {[%emt 0:03:30]} e5 {[%emt 0:16:30]} 13. dxe5 {[%emt 0:04:30]} Nxe5 {[%emt 0:01:30]} 14. Nxe5 {[%emt 0:06:30]} Bxe5 {[%emt 0:00:30]} 15. O-O {[%emt 0:01:30]} Bxh2+ {[%emt 0:16:30]} 16. Kxh2 {[%emt 0:03:30]} Ng4+ {[%emt 0:00:30]} 17. Kg1 {[%emt 0:03:30]} Rxf2 {[%emt 0:00:30]} 18. Ne3 {[%emt 0:05:30]} Nxe3 {[%emt 0:00:30]} 19. Bxh7+ {[%emt 0:04:30]} Kh8 {[%emt 0:05:30]} 20. Bxe3 {[%emt 0:05:30]} Rxf1+ {[%emt 0:01:30]} 21. Kxf1 {[%emt 0:01:30]} Qxe3 {[%emt 0:00:30]} 22. Bc2 {[%emt 0:00:30]} Bg4 {[%emt 0:01:30]} 23. Qxg4 {[%emt 0:00:30]} Rf8+ {[%emt 0:00:30]} 24. Bf5 {[%emt 0:00:30]} Qd3+ {[%emt 0:00:00]} 25. Kg1 {[%emt 0:00:00]} Qxf5 {[%emt 0:00:00]} 26. Qh4+ {[%emt 0:00:00]} Kg8 {[%emt 0:00:30]} 27. Re1 {[%emt 0:00:30]} Rf6 {[%emt 0:14:30]} 28. Qg3 {[%emt 0:02:30]} Qh5 {[%emt 0:02:16]} 29. Qe5 {[%emt 0:04:30]} Rf5 {[%emt 0:04:20]} 30. Qb8+ {[%emt 0:02:30]} Kh7 {[%emt 0:00:17]} 31. Qxa7 {[%emt 0:00:30]} Qh4 {[%emt 0:03:41]} 32. Qe3 {[%emt 0:02:30]} Rh5 {[%emt 0:00:30]} 33. Qd3+ {[%emt 0:00:30]} g6 {[%emt 0:01:05]} 34. Re3 {[%emt 0:01:30]} Qh1+ {[%emt 0:04:41]} 35. Kf2 {[%emt 0:00:30]} Qh4+ {[%emt 0:01:13]} 36. Kg1 {[%emt 0:03:59]} 1/2-1/2